fUSD/lending_fUSD_20250314
["ID","MTS","AMOUNT","RATE_DAILY","PERIOD"]
[356163805,1741979431833,-2100.0,9.6e-05,3]
[356163806,1741979431843,-2900.0,9.7e-05,3]
[356163807,1741979431852,-3600.0,9.8e-05,3]
[356163808,1741979431862,-239.9517,9.9e-05,2]
[356163809,1741979431873,-700.0,9.9e-05,3]
[356163810,1741979431883,-2299.3068,9.9e-05,2]
[356163811,1741979431893,-2388.9259,9.9e-05,2]
[356163812,1741979431904,-154669.96340371,0.0001,2]
[356163813,1741979431917,-24042.61756843,0.0001,2]
[356163814,1741979431928,-7135.35274793,0.0001,2]
[356163815,1741979431981,-8293.36643923,0.0001,2]
[356163816,1741979432036,-15830.2,0.0001,2]
[356164012,1741979437700,-786.08,0.0001,2]
[356164013,1741979437712,-1207.84439305,0.0001,2]
[356164014,1741979437748,-31185.5504714,0.0001,2]
[356164015,1741979437759,-2835.07721257,0.0001,2]
[356164016,1741979437807,-1094.09300434,0.0001,2]
[356164017,1741979437818,-6224.572055,0.0001,2]
[356164018,1741979437830,-9547.37304,0.0001,2]
[356164237,1741979440175,-2488.57798282,0.0001,2]
[356164239,1741979440187,-704.95729457,0.0001,2]
[356164241,1741979440198,-13284.14322112,0.0001,2]
[356164243,1741979440209,-502.1764791,0.0001,2]
[356164248,1741979440239,-643.55235569,0.0001,2]
[356164250,1741979440255,-242566.95577015,0.0001,2]
[356164296,1741979442742,-181325.8120158,0.0001,2]
[356164300,1741979442798,-38947.0,0.0001,2]
[356164314,1741979443179,-994.49440999,0.0001,2]
[356164317,1741979443191,-890.58,0.0001,2]
[356164319,1741979443204,-438.60309297,0.0001,2]
[356164333,1741979443335,-1276897.11706758,0.0001,2]
[356164334,1741979443347,-4304.3,0.0001,2]
[356164335,1741979445808,-476.87996005,0.0001,2]
[356164336,1741979445896,-445.9420982,0.0001,2]
[356164337,1741979445919,-264928.09377712,0.0001,2]
[356164338,1741979445928,-158308.38358136,0.0001,2]
[356164339,1741979445976,-329999.99999972,0.0001,2]
[356164340,1741979446007,-2761.34102237,0.0001,2]
[356164341,1741979446022,-1208.57901995,0.0001,2]
[356164342,1741979446087,-8517.0,0.0001,2]
[356164343,1741979446144,-1024705.92011949,0.0001,2]
[356164344,1741979446155,-2234.39594878,0.0001,2]
[356164345,1741979446201,-65966.33894,0.0001,2]
[356164717,1741979641591,196.08,9.569e-05,2]
[356164718,1741979683776,1000.0,8.95e-05,2]
[356164719,1741979711913,250.0,8.946e-05,2]
[356164720,1741979712423,163.88,8.946e-05,2]
[356164721,1741979902318,150.0,9.562e-05,7]
[356164722,1741980204208,1566.12,8.913e-05,2]
[356164725,1741980371233,188.53,9.18e-05,2]
[356164728,1741980458406,-200.0,9.59e-05,2]
[356164729,1741980458430,-550.0,9.59e-05,2]
[356164730,1741980458453,-150.0,9.591e-05,2]
[356164731,1741980458477,-196.08,9.594e-05,2]
[356164732,1741980458501,-196.08,9.619e-05,2]
[356164733,1741980458524,-196.08,9.644e-05,2]
[356164734,1741980458548,-223.67,9.665e-05,2]
[356164735,1741980458569,-163.33020747,9.669e-05,2]
[356164736,1741980458596,-196.08,9.669e-05,2]
[356164737,1741980458620,-196.08,9.694e-05,2]
[356164738,1741980458644,-196.08,9.72e-05,2]
[356164739,1741980458666,-336.76375293,9.723e-05,2]
[356164740,1741980458690,-196.08,9.745e-05,2]
[356164741,1741980458717,-196.08,9.77e-05,2]
[356164742,1741980458740,-196.08,9.795e-05,2]
[356164743,1741980458764,-196.08,9.82e-05,2]
[356164744,1741980458786,-163.33020746,9.821e-05,2]
[356164745,1741980458811,-196.08,9.845e-05,2]
[356164746,1741980458834,-196.08,9.871e-05,2]
[356164747,1741980458857,-196.08,9.896e-05,2]
[356164748,1741980458879,-465.3326,9.9e-05,2]
[356164749,1741980458903,-196.08,9.921e-05,2]
[356164750,1741980458927,-196.08,9.946e-05,2]
[356164751,1741980458949,-1494.45861843,9.963e-05,2]
[356164752,1741980458971,-150.0,9.963e-05,2]
[356164753,1741980458994,-3961.91461371,9.963e-05,2]
[356164754,1741980502255,700.0,9.2e-05,3]
[356164755,1741980504352,1400.0,9.3e-05,3]
[356164756,1741980506465,2100.0,9.4e-05,3]
[356164757,1741980508559,2303.83058819,9.5e-05,3]
[356164758,1741980508584,496.16941181,9.5e-05,3]
[356164759,1741980531139,9503.83058819,9.131e-05,2]
[356164760,1741980531163,358.34941181,9.131e-05,2]
[356164775,1741980632089,-652.16565134,9.6e-05,3]
[356164776,1741980632101,-1267.1695585,9.6e-05,3]
[356164777,1741980632112,-1029.29698763,9.6e-05,3]
[356164778,1741980632124,-551.36780253,9.6e-05,3]
[356164779,1741980632134,-700.0,9.7e-05,3]
[356164780,1741980632143,-163.33020746,9.7e-05,2]
[356164781,1741980632153,-216.01639126,9.8e-05,3]
[356164782,1741980632164,-483.98360874,9.8e-05,3]
[356164783,1741980632174,-700.0,9.9e-05,3]
[356164784,1741980632183,-1163.30639126,9.963e-05,2]
[356164785,1741980632195,-224.76408451,9.963e-05,2]
[356164786,1741980632204,-550.0,9.967e-05,2]
[356164787,1741980632215,-196.08,9.971e-05,2]
[356164788,1741980632224,-150.0,9.972e-05,2]
[356164789,1741980632233,-63.32872927,9.973e-05,2]
[356164790,1741980632244,-645.98250501,9.973e-05,2]
[356164791,1741980632263,-1036.92088886,9.973e-05,2]
[356164792,1741980632274,-1997.21734795,9.973e-05,2]
[356164793,1741980632298,-1846.34119113,9.973e-05,2]
[356164794,1741980632309,-778.82933618,9.973e-05,2]
[356164795,1741980632333,-712.02367317,9.973e-05,2]
[356164796,1741980632344,-6815.34,9.973e-05,2]
[356164831,1741980632652,-13444.99999781,9.973e-05,2]
[356164834,1741980632663,-25591.01633062,9.973e-05,2]
[356164837,1741980632673,-150.30865981,9.973e-05,2]
[356164840,1741980632683,-317702.19720221,9.98e-05,2]
[356165091,1741980637805,-175081.07712485,9.98e-05,2]
[356165092,1741980637815,-196.08,9.997e-05,2]
[356165093,1741980637827,-1310.9120015,9.999e-05,3]
[356165094,1741980637837,-978.85,9.999e-05,2]
[356165095,1741980637846,-1207.19884695,0.0001,2]
[356165096,1741980637855,-1378808.17270198,0.0001,2]
[356165097,1741980637920,-591.65,0.0001,2]
[356165098,1741980638036,-1292.01534265,0.0001,2]
[356165100,1741980640019,-491.47098,0.0001,2]
[356165101,1741980640080,-853.39982507,0.0001,2]
[356165102,1741980640092,-526.9713805,0.0001,2]
[356165117,1741980643289,-4242.25,0.0001,2]
[356165119,1741980646075,-10369.07289537,0.0001,2]
[356165120,1741980646293,-8527.6447171,0.0001,2]
[356165136,1741980732823,600.0,9.3e-05,3]
[356165137,1741980734974,1200.0,9.4e-05,3]
[356165138,1741980737073,1900.0,9.5e-05,3]
[356165139,1741980754186,3042.57,9.532e-05,2]
[356165140,1741980774599,250.0,9.294e-05,2]
[356165141,1741980830749,2000.0,8.899e-05,2]
[356165142,1741981043578,649.08058819,9.192e-05,2]
[356165143,1741981043600,350.91941181,9.192e-05,2]
[356165144,1741981099425,994.16,8.219e-05,2]
[356165145,1741981144568,250.0,9e-05,2]
[356165146,1741981228135,200.0,9.166e-05,2]
[356165147,1741981303688,300.0,9.16e-05,2]
[356165148,1741981435824,783.06,9.191e-05,2]
[356165154,1741981654304,500.0,9.3e-05,3]
[356165155,1741981656397,1000.0,9.4e-05,3]
[356165156,1741981658506,1500.0,9.5e-05,3]
[356165182,1741981832180,-478.31588386,9.6e-05,3]
[356165185,1741981832192,-752.19999999,9.6e-05,3]
[356165190,1741981832233,-869.48411615,9.6e-05,3]
[356165192,1741981832243,-1230.51588585,9.7e-05,3]
[356165197,1741981832287,-607.75,9.7e-05,3]
[356165200,1741981832299,-761.73411415,9.7e-05,3]
[356165202,1741981832308,-147.23948157,9.7e-05,2]
[356165206,1741981832341,-1115.47251878,9.7e-05,2]
[356165208,1741981832351,-500.0,9.8e-05,3]
[356165210,1741981832360,-150.0,9.863e-05,2]
[356165212,1741981832370,-1768.79897072,9.88e-05,2]
[356165216,1741981832395,-2955.50268388,9.88e-05,2]
[356165223,1741981832451,-724.0,9.88e-05,2]
[356165226,1741981832462,-1347.46149209,9.88e-05,2]
[356165228,1741981832474,-2012.01003,9.88e-05,2]
[356165323,1741981837989,-404.74462331,9.88e-05,2]
[356165324,1741981837999,-486.76285837,9.88e-05,2]
[356165325,1741981838013,-8787.78961928,9.88e-05,2]
[356165326,1741981838025,-693.26302235,9.88e-05,2]
[356165328,1741981838035,-150.0,9.899e-05,2]
[356165329,1741981838045,-1406.38743965,9.9e-05,2]
[356165331,1741981838057,-963.32856035,9.9e-05,2]
[356165333,1741981838066,-1769.9121,9.9e-05,2]
[356165335,1741981838076,-3507.60933965,9.9e-05,2]
[356165337,1741981838088,-468.0,9.9e-05,2]
[356165338,1741981838099,-1148.67986035,9.9e-05,2]
[356165339,1741981838109,-542.19391617,9.9e-05,2]
[356165340,1741981838121,-768.25008383,9.9e-05,2]
[356165341,1741981838135,-500.0,9.9e-05,3]
[356165342,1741981838145,-18.08142063,9.91e-05,2]
[356165343,1741981838157,-619.95565039,9.91e-05,2]
[356165344,1741981838166,-938.07,9.999e-05,2]
[356165345,1741981838176,-500.0,9.999e-05,2]
[356165346,1741981838186,-185.08555514,9.999e-05,2]
[356165347,1741981838195,-566.0,0.0001,2]
[356165348,1741981838206,-2203.14345253,0.0001,2]
[356165349,1741981838217,-1031629.20261149,0.0001,2]
[356165350,1741981838228,-30422.1693,0.0001,2]
[356165351,1741981838239,-7684.00974,0.0001,2]
[356165352,1741981838252,-779.54,0.0001,2]
[356165353,1741981838264,-14732.26242583,0.0001,2]
[356165354,1741981838275,-929.41239997,0.0001,2]
[356165355,1741981838288,-11020.7784883,0.0001,2]
[356165356,1741981838299,-47478.98132889,0.0001,2]
[356165357,1741981838310,-403.3,0.0001,2]
[356165358,1741981838322,-1139.33364815,0.0001,2]
[356165360,1741981838334,-1712.5,0.0001,2]
[356165367,1741981839742,400.0,9.3e-05,3]
[356165429,1741981840506,-3188.55,0.0001,2]
[356165431,1741981840515,-741.42317371,0.0001,2]
[356165433,1741981840526,-1950.12476981,0.0001,2]
[356165435,1741981840537,-18472.37774286,0.0001,2]
[356165441,1741981840583,-2356.92858334,0.0001,2]
[356165479,1741981841834,900.0,9.4e-05,3]
[356165493,1741981843149,-274.78426952,0.0001,2]
[356165494,1741981843161,-12735.16850103,0.0001,2]
[356165495,1741981843298,-314181.8591945,0.0001,2]
[356165496,1741981843310,-7816.2084,0.0001,2]
[356165497,1741981843321,-6714.99999979,0.0001,2]
[356165498,1741981843332,-270.15854092,0.0001,2]
[356165499,1741981843342,-5462.99999997,0.0001,2]
[356165500,1741981843353,-782.89211,0.0001,2]
[356165501,1741981843364,-41296.21949982,0.0001,2]
[356165546,1741981843954,1300.0,9.5e-05,3]
[356165554,1741981846090,-608.0,0.0001,2]
[356165555,1741981846100,-186933.91534551,0.0001,2]
[356165556,1741981846194,-1800.0,9.6e-05,3]
[356165557,1741981846203,-5135.12525123,0.0001,2]
[356165558,1741981846316,-155880.54907983,0.0001,2]
[356165559,1741981846327,-397.44945778,0.0001,2]
[356165621,1741981903431,1521.86058819,9.551e-05,2]
[356165622,1741981903452,478.13941181,9.551e-05,2]
[356165623,1741981959523,223.67,9.546e-05,2]
[356165624,1741981963180,164.19,9.52e-05,2]
[356165625,1741981986398,150.0,9.562e-05,7]
[356165626,1741982137474,1000.0,9.482e-05,2]
[356165627,1741982150020,157.33,9.513e-05,2]
[356165628,1741982150228,157.33,9.547e-05,2]
[356165629,1741982298460,533.77,8.98e-05,2]
[356165630,1741982432551,1022.69,8.219e-05,2]
[356165631,1741982462476,500.0,8.974e-05,2]
[356165632,1741982500398,797.41,8.962e-05,2]
[356165633,1741982588070,1435.02,9.003e-05,2]
[356165641,1741982827932,-157.33,9.581e-05,2]
[356165642,1741982827956,-42.67,9.585e-05,2]
[356165643,1741982843799,300.0,9.3e-05,3]
[356165644,1741982845901,700.0,9.4e-05,3]
[356165645,1741982847995,1000.0,9.5e-05,3]
[356165646,1741982877428,623.14,8.964e-05,2]
[356165648,1741982953089,160.66,9.215e-05,2]
[356165649,1741982981340,250.0,9e-05,2]
[356165656,1741983032285,-540.0,9.575e-05,2]
[356165657,1741983032297,-287.41,9.575e-05,2]
[356165658,1741983032306,-248.06,9.585e-05,2]
[356165659,1741983032589,-263.7716716,9.585e-05,2]
[356165660,1741983032601,-1621.9085771,9.585e-05,2]
[356165661,1741983032614,-7702.67026752,9.585e-05,2]
[356165662,1741983032625,-4873.03523845,9.585e-05,2]
[356165663,1741983032667,-1395.09553501,9.585e-05,2]
[356165664,1741983032678,-2257.03968916,9.585e-05,2]
[356165665,1741983032690,-295.49189213,9.585e-05,2]
[356165666,1741983032705,-379.13583816,9.585e-05,2]
[356165667,1741983032717,-6329.22568296,9.585e-05,2]
[356165668,1741983032728,-298.695,9.585e-05,2]
[356165669,1741983032739,-1981.65944888,9.585e-05,2]
[356165670,1741983032750,-3937.72641199,9.585e-05,2]
[356165671,1741983032761,-4561.16061818,9.585e-05,2]
[356165672,1741983032772,-2638.46326008,9.585e-05,2]
[356165686,1741983038194,-9061.49703077,9.585e-05,2]
[356165687,1741983038207,-2854.40002,9.585e-05,2]
[356165688,1741983038247,-1316.44851842,9.585e-05,2]
[356165689,1741983038257,-267.00301822,9.585e-05,2]
[356165690,1741983038266,-186563.33804129,9.585e-05,2]
[356165691,1741983038278,-20140.44234091,9.585e-05,2]
[356165692,1741983038288,-603.465158,9.585e-05,2]
[356165693,1741983038300,-848.6840014,9.585e-05,2]
[356165694,1741983038359,-1140.74733743,9.585e-05,2]
[356165695,1741983038466,-3156.42650307,9.585e-05,2]
[356165703,1741983038590,-11323.77274692,9.585e-05,2]
[356165794,1741983040527,-701.71777051,9.584e-05,2]
[356165796,1741983040536,-673.69602949,9.585e-05,2]
[356165797,1741983040673,-701.71777051,9.584e-05,2]
[356165798,1741983040683,-701.71777051,9.584e-05,2]
[356165799,1741983040693,-701.71777051,9.584e-05,2]
[356165800,1741983040703,-701.71777051,9.584e-05,2]
[356165801,1741983040712,-90313.2679167,9.585e-05,2]
[356165802,1741983040723,-92187.54498656,9.585e-05,2]
[356165803,1741983040742,-701.71777051,9.584e-05,2]
[356165804,1741983040752,-261.47974949,9.585e-05,2]
[356165805,1741983040781,-701.71777051,9.584e-05,2]
[356165806,1741983040790,-309.34650153,9.585e-05,2]
[356165807,1741983040835,-701.71777051,9.584e-05,2]
[356165808,1741983040845,-3893.07332681,9.585e-05,2]
[356165809,1741983040858,-1090.1673883,9.585e-05,2]
[356165810,1741983040890,-319.83586182,9.585e-05,2]
[356165811,1741983040902,-6720.66636436,9.585e-05,2]
[356165817,1741983043304,-701.71777051,9.584e-05,2]
[356165818,1741983043314,-377.65057753,9.584e-05,2]
[356165819,1741983043359,-324.06719298,9.584e-05,2]
[356165820,1741983043368,-701.71777051,9.584e-05,2]
[356165821,1741983043378,-701.71777051,9.584e-05,2]
[356165822,1741983043387,-701.71777051,9.584e-05,2]
[356165823,1741983043397,-701.71777051,9.584e-05,2]
[356165824,1741983043406,-701.71777051,9.584e-05,2]
[356165825,1741983043415,-701.71777051,9.584e-05,2]
[356165826,1741983043425,-701.71777051,9.584e-05,2]
[356165827,1741983043434,-701.71777051,9.584e-05,2]
[356165828,1741983043444,-701.71777051,9.584e-05,2]
[356165829,1741983043453,-5230.14128326,9.585e-05,2]
[356165830,1741983043467,-1875.56927,9.585e-05,2]
[356165831,1741983043478,-2803.85817402,9.585e-05,2]
[356165832,1741983043854,-361.45361106,9.585e-05,2]
[356165833,1741983043865,-109668.87610268,9.585e-05,2]
[356165834,1741983043876,-13880.54347025,9.585e-05,2]
[356165835,1741983043888,-111207.3299829,9.585e-05,2]
[356165836,1741983043899,-12888.52295393,9.585e-05,2]
[356165837,1741983043910,-68955.12515105,9.585e-05,2]
[356165838,1741983043922,-1943.25529658,9.585e-05,2]
[356165841,1741983046314,-498.15733338,9.585e-05,2]
[356165851,1741983096038,496.65058819,9.022e-05,2]
[356165852,1741983096060,305.26941181,9.022e-05,2]
[356165853,1741983142106,2000.0,8.829e-05,2]
[356165854,1741983182565,7694.73058819,9.562e-05,2]
[356165855,1741983182592,10000.0,9.562e-05,2]
[356165856,1741983182616,10000.0,9.562e-05,2]
[356165857,1741983182640,10000.0,9.562e-05,2]
[356165858,1741983182665,10000.0,9.562e-05,2]
[356165859,1741983182684,10000.0,9.562e-05,2]
[356165860,1741983182704,10000.0,9.562e-05,2]
[356165861,1741983182724,2319.26941181,9.562e-05,2]
[356165862,1741983197581,250.0,8.824e-05,2]
[356165863,1741983231296,200.0,8.831e-05,2]
[356165864,1741983249129,936.2811,9.485e-05,2]
[356165865,1741983272123,2500.0,9.485e-05,2]
[356165867,1741983304136,196.08,8.831e-05,2]
[356165868,1741983304338,196.08,9.273e-05,2]
[356165869,1741983354359,3402.28948819,9.485e-05,2]
[356165870,1741983354381,10000.0,9.485e-05,2]
[356165871,1741983354401,10000.0,9.485e-05,2]
[356165872,1741983354422,10000.0,9.485e-05,2]
[356165873,1741983354443,10000.0,9.485e-05,2]
[356165874,1741983354463,10000.0,9.485e-05,2]
[356165875,1741983354484,10000.0,9.485e-05,2]
[356165876,1741983354504,10000.0,9.485e-05,2]
[356165877,1741983354525,10000.0,9.485e-05,2]
[356165878,1741983354546,10000.0,9.485e-05,2]
[356165879,1741983354566,10000.0,9.485e-05,2]
[356165880,1741983354587,10000.0,9.485e-05,2]
[356165881,1741983354611,10000.0,9.485e-05,2]
[356165882,1741983354637,10000.0,9.485e-05,2]
[356165883,1741983354660,4276.24001181,9.485e-05,2]
[356165884,1741983363241,4619.6452,9.485e-05,2]
[356165885,1741983368929,1000.0,8.828e-05,2]
[356165886,1741983375608,104.11478819,9.485e-05,2]
[356165887,1741983375642,4946.21951181,9.485e-05,2]
[356165888,1741983431646,4603.3965,9.485e-05,2]
[356165889,1741983455736,450.38398819,9.485e-05,2]
[356165890,1741983455757,784.32941181,9.485e-05,2]
[356165891,1741983458394,2500.0,9.485e-05,2]
[356165892,1741983539570,971.55,8.219e-05,2]
[356165893,1741983603590,156.0,9.485e-05,3]
[356165894,1741983629599,398.7,8.831e-05,2]
[356165895,1741983638106,988.2717,9.485e-05,2]
[356165897,1741983810423,377.87,8.834e-05,2]
[356165898,1741983903412,157.0,9.485e-05,3]
[356165899,1741983970232,55.99197432,0.000201,120]
[356165900,1741984000238,337.5,8.842e-05,2]
[356165903,1741984030415,300.0,9.2e-05,3]
[356165904,1741984032538,600.0,9.3e-05,3]
[356165905,1741984034634,1000.0,9.4e-05,3]
[356165906,1741984036793,1300.0,9.5e-05,3]
[356165907,1741984064403,128.77888819,9.092e-05,2]
[356165908,1741984064425,49.29111181,9.092e-05,2]
[356165911,1741984141313,169.33,8.826e-05,2]
[356165912,1741984204367,157.0,9.485e-05,3]
[356165926,1741984231441,-833.96916764,9.584e-05,2]
[356165927,1741984231455,-85.85083236,9.584e-05,2]
[356165928,1741984231466,-155.43281488,9.584e-05,2]
[356165929,1741984231477,-150.0,9.584e-05,2]
[356165930,1741984231488,-550.0,9.584e-05,2]
[356165931,1741984231499,-62.75429101,9.584e-05,2]
[356165932,1741984231512,-437.24570899,9.584e-05,2]
[356165933,1741984231523,-500.0,9.584e-05,2]
[356165934,1741984231533,-500.0,9.584e-05,2]
[356165935,1741984231543,-428.21246422,9.584e-05,2]
[356165936,1741984231556,-71.78753578,9.584e-05,2]
[356165937,1741984231567,-180.46446422,9.584e-05,2]
[356165938,1741984231580,-319.53553578,9.584e-05,2]
[356165939,1741984231591,-500.0,9.584e-05,2]
[356165940,1741984231602,-500.0,9.584e-05,2]
[356165941,1741984231613,-262.68449422,9.584e-05,2]
[356165942,1741984231626,-237.31550578,9.584e-05,2]
[356165943,1741984231637,-500.0,9.584e-05,2]
[356165944,1741984231648,-500.0,9.584e-05,2]
[356165945,1741984231659,-500.0,9.584e-05,2]
[356165946,1741984231669,-500.0,9.584e-05,2]
[356165947,1741984231681,-500.0,9.584e-05,2]
[356165948,1741984231692,-500.0,9.584e-05,2]
[356165949,1741984231703,-420.61324621,9.584e-05,2]
[356165950,1741984231714,-500.0,9.584e-05,2]
[356165951,1741984231725,-500.0,9.584e-05,2]
[356165952,1741984231737,-500.0,9.584e-05,2]
[356165953,1741984231748,-500.0,9.584e-05,2]
[356165954,1741984231760,-500.0,9.584e-05,2]
[356165955,1741984231772,-6097.27431243,9.585e-05,2]
[356165958,1741984237280,-16098.20203296,9.585e-05,2]
[356165959,1741984237339,-1520.0,9.585e-05,2]
[356165960,1741984237351,-3357.4,9.585e-05,2]
[356165961,1741984237362,-289.80501746,9.585e-05,2]
[356165962,1741984237394,-334.19342566,9.585e-05,2]
[356165963,1741984237405,-661.21728265,9.585e-05,2]
[356165964,1741984237417,-735.0921918,9.585e-05,2]
[356165965,1741984237428,-347.1759863,9.585e-05,2]
[356165966,1741984237451,-16886.75199999,9.585e-05,2]
[356165967,1741984237514,-656814.87905647,9.585e-05,2]
[356165968,1741984237526,-3476.6,9.585e-05,2]
[356165969,1741984237537,-430.11753706,9.585e-05,2]
[356166138,1741984275543,1452.9357,9.485e-05,2]
[356166139,1741984342749,250.0,8.833e-05,2]
[356166140,1741984351580,815.0472,9.485e-05,2]
[356166141,1741984402606,1000.0,8.809e-05,2]
[356166142,1741984495358,6106.39598819,9.485e-05,2]
[356166143,1741984495380,5140.85781181,9.485e-05,2]
[356166144,1741984549919,961.58,8.219e-05,2]
[356166147,1741984681857,332.4,8.808e-05,2]
[356166148,1741984682433,150.0,9.196e-05,2]
[356166149,1741984710603,1303.858,9.393e-05,2]
[356166150,1741984786497,2111.30418819,9.285e-05,2]
[356166151,1741984786519,579.85581181,9.285e-05,2]
[356166152,1741984801613,398.93,8.8e-05,2]
[356166153,1741984823217,250.0,9e-05,2]
[356166154,1741984880514,-1952.0708651,9.584e-05,3]
[356166155,1741984880538,-157.0,9.585e-05,3]
[356166156,1741984984906,150.0,9.399e-05,2]
[356166157,1741984984959,150.0,9.365e-05,2]
[356166160,1741985042689,150.0,9.433e-05,2]
[356166161,1741985042742,150.0,9.356e-05,2]
[356166162,1741985042773,150.0,9.399e-05,2]
[356166163,1741985042804,150.0,9.358e-05,2]
[356166164,1741985042858,150.0,9.361e-05,2]
[356166165,1741985042890,150.0,9.421e-05,2]
[356166166,1741985042924,150.0,9.456e-05,2]
[356166167,1741985042975,150.0,9.33e-05,2]
[356166168,1741985043006,150.0,9.457e-05,2]
[356166169,1741985043054,150.0,9.508e-05,2]
[356166170,1741985043085,150.0,9.465e-05,2]
[356166171,1741985043117,150.0,9.559e-05,2]
[356166172,1741985043152,150.0,9.565e-05,2]
[356166173,1741985043184,150.0,9.421e-05,2]
[356166174,1741985043219,150.0,9.503e-05,2]
[356166175,1741985043254,150.0,9.409e-05,2]
[356166176,1741985043288,150.0,9.424e-05,2]
[356166177,1741985043321,150.0,9.501e-05,2]
[356166178,1741985043359,150.0,9.537e-05,2]
[356166179,1741985043395,150.0,9.402e-05,2]
[356166180,1741985043432,150.0,9.395e-05,2]
[356166181,1741985043487,150.0,9.346e-05,2]
[356166182,1741985043521,150.0,9.433e-05,2]
[356166183,1741985043555,150.0,9.35e-05,2]
[356166184,1741985043588,150.0,9.355e-05,2]
[356166185,1741985043621,150.0,9.45e-05,2]
[356166186,1741985043669,150.0,9.311e-05,2]
[356166187,1741985043701,150.0,9.536e-05,2]
[356166188,1741985043735,150.0,9.57e-05,2]
[356166189,1741985043784,150.0,9.51e-05,2]
[356166190,1741985043821,150.0,9.444e-05,2]
[356166191,1741985043854,150.0,9.343e-05,2]
[356166192,1741985043887,150.0,9.409e-05,2]
[356166193,1741985043925,150.0,9.562e-05,2]
[356166194,1741985043958,150.0,9.349e-05,2]
[356166195,1741985043991,150.0,9.43e-05,2]
[356166196,1741985044066,150.0,9.386e-05,2]
[356166197,1741985044181,150.0,9.331e-05,2]
[356166198,1741985044281,150.0,9.336e-05,2]
[356166199,1741985044314,150.0,9.438e-05,2]
[356166200,1741985044346,150.0,9.461e-05,2]
[356166201,1741985044379,150.0,9.44e-05,2]
[356166202,1741985044497,150.0,9.434e-05,2]
[356166203,1741985044585,150.0,9.384e-05,2]
[356166204,1741985044631,150.0,9.402e-05,2]
[356166205,1741985045715,150.0,9.382e-05,2]
[356166206,1741985052860,150.0,9.447e-05,2]
[356166207,1741985052895,150.0,9.51e-05,2]
[356166208,1741985052931,150.0,9.316e-05,2]
[356166209,1741985052975,150.0,9.522e-05,2]
[356166210,1741985053032,150.0,9.523e-05,2]
[356166211,1741985053088,150.0,9.338e-05,2]
[356166212,1741985065816,671.21418819,9.485e-05,2]
[356166213,1741985065840,10000.0,9.485e-05,2]
[356166214,1741985065863,1287.89551181,9.485e-05,2]
[356166215,1741985089500,1000.0,9.347e-05,2]
[356166216,1741985089554,1000.0,9.49e-05,2]
[356166217,1741985089612,1000.0,9.319e-05,2]
[356166218,1741985089667,1000.0,9.434e-05,2]
[356166219,1741985105088,150.0,9.52e-05,2]
[356166220,1741985105137,150.0,9.515e-05,2]
[356166221,1741985106762,150.0,9.562e-05,2]
[356166222,1741985230217,200.0,9.2e-05,3]
[356166223,1741985232331,500.0,9.3e-05,3]
[356166224,1741985234426,800.0,9.4e-05,3]
[356166225,1741985236520,1100.0,9.5e-05,3]
[356166226,1741985312704,952.09,8.815e-05,2]
[356166227,1741985369228,-150.0,9.575e-05,2]
[356166228,1741985369256,-150.0,9.575e-05,2]
[356166229,1741985369282,-150.0,9.575e-05,2]
[356166230,1741985369311,-550.0,9.576e-05,2]
[356166231,1741985369339,-150.0,9.576e-05,2]
[356166232,1741985369367,-550.0,9.581e-05,2]
[356166233,1741985369395,-881.49,9.584e-05,2]
[356166234,1741985369420,-150.0,9.584e-05,2]
[356166235,1741985369445,-175.07724001,9.584e-05,2]
[356166236,1741985369473,-300.0,9.584e-05,2]
[356166237,1741985369500,-500.0,9.584e-05,2]
[356166238,1741985369527,-500.0,9.584e-05,2]
[356166239,1741985369555,-236.33239836,9.584e-05,2]
[356166240,1741985369583,-222.70140223,9.585e-05,2]
[356166241,1741985369616,-4665.6010406,9.585e-05,2]
[356166242,1741985369648,-1108.93613991,9.585e-05,2]
[356166243,1741985386074,2306.7,9.285e-05,2]
[356166247,1741985431673,-955.21213578,9.579e-05,2]
[356166248,1741985431837,-12739.32984072,9.579e-05,2]